[Event "Live Chess"]
[Site "Chess.com"]
[Date "2024.06.01"]
[Round "-"]
[White "IgorSchukin"]
[Black "Pandreq"]
[Result "1-0"]
[WhiteElo "1704"]
[BlackElo "1190"]
[TimeControl "300"]
[EndTime "15:04:43 PDT"]
[Termination "IgorSchukin won on time"]

1. e4 {[%clk 0:04:57.5]} 1... Nf6 {[%clk 0:04:58.7]} 2. Nc3 {[%clk 0:04:55.6]}
2... Nc6 {[%clk 0:04:57.2]} 3. Nf3 {[%clk 0:04:55]} 3... d6 {[%clk 0:04:55]} 4.
d4 {[%clk 0:04:53.5]} 4... Bg4 {[%clk 0:04:52.9]} 5. Be2 {[%clk 0:04:51.5]} 5...
e5 {[%clk 0:04:47.3]} 6. dxe5 {[%clk 0:04:47.6]} 6... Bxf3 {[%clk 0:04:45.7]} 7.
Bxf3 {[%clk 0:04:46.2]} 7... Nxe5 {[%clk 0:04:44]} 8. Be2 {[%clk 0:04:40.1]}
8... Be7 {[%clk 0:04:38]} 9. O-O {[%clk 0:04:37.5]} 9... O-O {[%clk 0:04:36.5]}
10. f4 {[%clk 0:04:36.3]} 10... Nc6 {[%clk 0:04:27.7]} 11. Be3 {[%clk
0:04:34.2]} 11... Re8 {[%clk 0:04:19]} 12. Qd3 {[%clk 0:04:28.6]} 12... Nb4
{[%clk 0:04:08.9]} 13. Qd2 {[%clk 0:04:26]} 13... c5 {[%clk 0:03:40.2]} 14. a3
{[%clk 0:04:23.1]} 14... Nc6 {[%clk 0:03:35.2]} 15. Rad1 {[%clk 0:04:21.3]}
15... h6 {[%clk 0:03:00]} 16. Bf3 {[%clk 0:03:46.9]} 16... Rc8 {[%clk
0:02:50.2]} 17. g4 {[%clk 0:03:43.1]} 17... Qd7 {[%clk 0:02:43.7]} 18. g5 {[%clk
0:03:39]} 18... hxg5 {[%clk 0:02:36.2]} 19. fxg5 {[%clk 0:03:37.3]} 19... Ng4
{[%clk 0:02:32.3]} 20. Bxg4 {[%clk 0:03:21.7]} 20... Qxg4+ {[%clk 0:02:30.1]}
21. Kh1 {[%clk 0:03:20.7]} 21... Ne5 {[%clk 0:02:09.1]} 22. Rg1 {[%clk
0:03:17.8]} 22... Qf3+ {[%clk 0:02:00.3]} 23. Rg2 {[%clk 0:03:15.8]} 23... Nc4
{[%clk 0:01:50.6]} 24. Qf2 {[%clk 0:02:45.8]} 24... Qxe3 {[%clk 0:01:43.1]} 25.
Qh4 {[%clk 0:02:41]} 25... g6 {[%clk 0:01:28.6]} 26. Re1 {[%clk 0:02:27.5]}
26... Qd4 {[%clk 0:01:20.2]} 27. Rg3 {[%clk 0:02:24.9]} 27... Nd2 {[%clk
0:01:08.9]} 28. Rh3 {[%clk 0:02:21.6]} 28... b6 {[%clk 0:00:47.5]} 29. e5 {[%clk
0:02:13.3]} 29... Qxh4 {[%clk 0:00:43.5]} 30. Rxh4 {[%clk 0:02:11.7]} 30... Bxg5
{[%clk 0:00:42.3]} 31. Rg4 {[%clk 0:02:05.4]} 31... Bh6 {[%clk 0:00:39.1]} 32.
Rd1 {[%clk 0:01:56.8]} 32... Nf3 {[%clk 0:00:32.7]} 33. exd6 {[%clk 0:01:53.5]}
33... Re1+ {[%clk 0:00:29.2]} 34. Rxe1 {[%clk 0:01:51.3]} 34... Nxe1 {[%clk
0:00:28.3]} 35. d7 {[%clk 0:01:44.7]} 35... Rd8 {[%clk 0:00:25]} 36. Re4 {[%clk
0:01:43.6]} 36... Rxd7 {[%clk 0:00:21.7]} 37. Rxe1 {[%clk 0:01:41.6]} 37... Bd2
{[%clk 0:00:18.9]} 38. Rd1 {[%clk 0:01:40.3]} 38... Rd8 {[%clk 0:00:11.1]} 39.
Ne4 {[%clk 0:01:38.1]} 39... Re8 {[%clk 0:00:05.1]} 40. Nxd2 {[%clk 0:01:35.7]}
40... Re2 {[%clk 0:00:03.3]} 41. c4 {[%clk 0:01:32]} 41... Kg7 {[%clk
0:00:03.2]} 42. b4 {[%clk 0:01:30.4]} 42... cxb4 {[%clk 0:00:02.1]} 43. axb4
{[%clk 0:01:29.2]} 43... a5 {[%clk 0:00:01.3]} 44. bxa5 {[%clk 0:01:27.2]} 44...
bxa5 {[%clk 0:00:00.8]} 45. c5 {[%clk 0:01:26.5]} 1-0

[Event "Live Chess"]
[Site "Chess.com"]
[Date "2024.06.01"]
[Round "-"]
[White "Crowded_House"]
[Black "ACM42"]
[Result "0-1"]
[WhiteElo "1740"]
[BlackElo "2162"]
[TimeControl "300"]
[EndTime "15:04:48 PDT"]
[Termination "ACM42 won by checkmate"]

1. d4 {[%clk 0:04:58]} 1... Nf6 {[%clk 0:04:56.7]} 2. Bg5 {[%clk 0:04:57.4]}
2... Ne4 {[%clk 0:04:54.3]} 3. Bh4 {[%clk 0:04:56.2]} 3... d5 {[%clk 0:04:53.7]}
4. Nd2 {[%clk 0:04:55]} 4... Nd6 {[%clk 0:04:52]} 5. Ngf3 {[%clk 0:04:52.6]}
5... g6 {[%clk 0:04:51.3]} 6. c3 {[%clk 0:04:50.9]} 6... Bg7 {[%clk 0:04:50.6]}
7. e3 {[%clk 0:04:50.4]} 7... O-O {[%clk 0:04:50]} 8. Bd3 {[%clk 0:04:49.6]}
8... b6 {[%clk 0:04:48.4]} 9. O-O {[%clk 0:04:47.8]} 9... Re8 {[%clk 0:04:47.5]}
10. Qc2 {[%clk 0:04:46.5]} 10... c5 {[%clk 0:04:46.5]} 11. Rab1 {[%clk
0:04:29.5]} 11... c4 {[%clk 0:04:44.3]} 12. Be2 {[%clk 0:04:28.4]} 12... a5
{[%clk 0:04:42.9]} 13. b3 {[%clk 0:04:25]} 13... Ba6 {[%clk 0:04:40.8]} 14. bxc4
{[%clk 0:04:17.6]} 14... Qc7 {[%clk 0:04:31.3]} 15. cxd5 {[%clk 0:04:03.7]}
15... Bxe2 {[%clk 0:04:29.3]} 16. Rfe1 {[%clk 0:04:02.1]} 16... Ba6 {[%clk
0:04:25.8]} 17. Rec1 {[%clk 0:03:50.2]} 17... Nc4 {[%clk 0:04:21.4]} 18. Nxc4
{[%clk 0:03:48.5]} 18... Bxc4 {[%clk 0:04:20.5]} 19. a3 {[%clk 0:03:44.8]} 19...
Bxd5 {[%clk 0:04:14.1]} 20. Bg3 {[%clk 0:03:40.9]} 20... Qc6 {[%clk 0:04:10.2]}
21. Qe2 {[%clk 0:03:30]} 21... Bc4 {[%clk 0:04:01.8]} 22. Qd2 {[%clk 0:03:19.5]}
22... Nd7 {[%clk 0:03:57.2]} 23. Rb2 {[%clk 0:03:09.5]} 23... b5 {[%clk
0:03:54.8]} 24. Ne1 {[%clk 0:02:59.5]} 24... Nb6 {[%clk 0:03:51.5]} 25. Nd3
{[%clk 0:02:46.4]} 25... Na4 {[%clk 0:03:46.4]} 26. Rbb1 {[%clk 0:02:39.5]}
26... Rad8 {[%clk 0:03:43.1]} 27. Ne5 {[%clk 0:02:31.7]} 27... Qe6 {[%clk
0:03:34]} 28. Nxc4 {[%clk 0:02:25.6]} 28... Qxc4 {[%clk 0:03:31.2]} 29. Rc2
{[%clk 0:02:00.9]} 29... e5 {[%clk 0:03:29.2]} 30. Rbc1 {[%clk 0:01:54]} 30...
f5 {[%clk 0:03:20.8]} 31. Qe2 {[%clk 0:01:48.9]} 31... Qxe2 {[%clk 0:03:09]} 32.
Rxe2 {[%clk 0:01:46.8]} 32... Rc8 {[%clk 0:03:08.3]} 33. Rec2 {[%clk 0:01:36.8]}
33... Rc4 {[%clk 0:03:05.5]} 34. dxe5 {[%clk 0:01:23.7]} 34... Bxe5 {[%clk
0:03:03.4]} 35. Bxe5 {[%clk 0:01:22.8]} 35... Rxe5 {[%clk 0:03:02.6]} 36. Kf1
{[%clk 0:01:15.5]} 36... Rec5 {[%clk 0:03:00.2]} 37. Ke2 {[%clk 0:01:13.9]}
37... Rxc3 {[%clk 0:02:53.1]} 38. Rxc3 {[%clk 0:01:09.7]} 38... Nxc3+ {[%clk
0:02:51.7]} 39. Kf3 {[%clk 0:01:00.4]} 39... Kf7 {[%clk 0:02:48.9]} 40. Rc2
{[%clk 0:00:56.1]} 40... b4 {[%clk 0:02:43.9]} 41. axb4 {[%clk 0:00:54.6]} 41...
axb4 {[%clk 0:02:43.2]} 42. Rb2 {[%clk 0:00:50.8]} 42... Rc4 {[%clk 0:02:42.3]}
43. g3 {[%clk 0:00:46.2]} 43... Na4 {[%clk 0:02:40.9]} 44. Rb3 {[%clk
0:00:42.8]} 44... Nc5 {[%clk 0:02:40.1]} 45. Rb2 {[%clk 0:00:40]} 45... b3
{[%clk 0:02:39.3]} 46. Ke2 {[%clk 0:00:37.9]} 46... Ke6 {[%clk 0:02:37.7]} 47.
Kd2 {[%clk 0:00:35.4]} 47... Kd5 {[%clk 0:02:30.8]} 48. f3 {[%clk 0:00:34.3]}
48... Kc6 {[%clk 0:02:26.1]} 49. h3 {[%clk 0:00:26]} 49... Kb5 {[%clk
0:02:24.8]} 50. g4 {[%clk 0:00:25.1]} 50... Kb4 {[%clk 0:02:23.2]} 51. gxf5
{[%clk 0:00:21.9]} 51... gxf5 {[%clk 0:02:21.8]} 52. e4 {[%clk 0:00:21.8]} 52...
fxe4 {[%clk 0:02:20.2]} 53. fxe4 {[%clk 0:00:21.2]} 53... Rxe4 {[%clk
0:02:19.6]} 54. Kd1 {[%clk 0:00:17.5]} 54... Na4 {[%clk 0:02:13.6]} 55. Rd2
{[%clk 0:00:13.3]} 55... b2 {[%clk 0:02:12.1]} 56. Kc2 {[%clk 0:00:12.5]} 56...
Rc4+ {[%clk 0:02:11]} 57. Kb1 {[%clk 0:00:11.3]} 57... Rc1+ {[%clk 0:02:10.3]}
58. Ka2 {[%clk 0:00:09.4]} 58... b1=Q# {[%clk 0:02:10.2]} 0-1

[Event "Live Chess"]
[Site "Chess.com"]
[Date "2024.06.01"]
[Round "-"]
[White "degringolade64"]
[Black "SavagePawn7"]
[Result "1-0"]
[WhiteElo "2113"]
[BlackElo "659"]
[TimeControl "300"]
[EndTime "15:04:56 PDT"]
[Termination "degringolade64 won by resignation"]

1. e4 {[%clk 0:04:56.9]} 1... d5 {[%clk 0:04:56.6]} 2. exd5 {[%clk 0:04:55.5]}
2... Nf6 {[%clk 0:04:49.9]} 3. Nf3 {[%clk 0:04:53.4]} 3... Nxd5 {[%clk
0:04:47.7]} 4. d4 {[%clk 0:04:51.6]} 4... Bg4 {[%clk 0:04:44.9]} 5. Be2 {[%clk
0:04:47]} 5... Nc6 {[%clk 0:04:41.9]} 6. h3 {[%clk 0:04:44.2]} 6... Bxf3 {[%clk
0:04:38.1]} 7. Bxf3 {[%clk 0:04:42.7]} 7... e6 {[%clk 0:04:34.7]} 8. O-O {[%clk
0:04:40.1]} 8... Bd6 {[%clk 0:04:15.1]} 9. c4 {[%clk 0:04:37]} 9... Nf6 {[%clk
0:04:11.9]} 10. Nc3 {[%clk 0:04:29.6]} 10... O-O {[%clk 0:04:05.7]} 11. Bg5
{[%clk 0:04:18.4]} 11... h6 {[%clk 0:04:00.5]} 12. Bh4 {[%clk 0:04:15]} 12... g5
{[%clk 0:03:43.7]} 13. Bxc6 {[%clk 0:04:10.1]} 13... b6 {[%clk 0:03:41.3]} 14.
Bg3 {[%clk 0:04:05]} 14... Bxg3 {[%clk 0:03:33.8]} 15. fxg3 {[%clk 0:04:04.9]}
15... Rb8 {[%clk 0:03:20.8]} 16. Qd3 {[%clk 0:03:50.8]} 16... Re8 {[%clk
0:02:56.6]} 17. Rad1 {[%clk 0:03:47]} 1-0

[Event "Live Chess"]
[Site "Chess.com"]
[Date "2024.06.01"]
[Round "-"]
[White "bonantagulo"]
[Black "cymbalshift"]
[Result "1-0"]
[WhiteElo "2194"]
[BlackElo "1650"]
[TimeControl "300"]
[EndTime "15:04:57 PDT"]
[Termination "bonantagulo won by resignation"]

1. d4 {[%clk 0:04:57.7]} 1... Nf6 {[%clk 0:04:58.4]} 2. c4 {[%clk 0:04:56.9]}
2... e6 {[%clk 0:04:57.3]} 3. Nf3 {[%clk 0:04:56.3]} 3... c5 {[%clk 0:04:55.9]}
4. d5 {[%clk 0:04:55.5]} 4... exd5 {[%clk 0:04:55.8]} 5. cxd5 {[%clk 0:04:55.2]}
5... d6 {[%clk 0:04:54.7]} 6. Nc3 {[%clk 0:04:53.8]} 6... g6 {[%clk 0:04:53.7]}
7. e4 {[%clk 0:04:52.5]} 7... a6 {[%clk 0:04:52.2]} 8. a4 {[%clk 0:04:50.4]}
8... Bg7 {[%clk 0:04:51.4]} 9. Be2 {[%clk 0:04:49]} 9... O-O {[%clk 0:04:50.5]}
10. Bf4 {[%clk 0:04:47.1]} 10... Bg4 {[%clk 0:04:46.8]} 11. Nd2 {[%clk
0:04:45.3]} 11... Bxe2 {[%clk 0:04:44.7]} 12. Qxe2 {[%clk 0:04:45.2]} 12... Nh5
{[%clk 0:04:29.3]} 13. Bg3 {[%clk 0:04:43.3]} 13... Re8 {[%clk 0:04:26.3]} 14.
Nc4 {[%clk 0:04:32.9]} 14... Nxg3 {[%clk 0:04:18]} 15. hxg3 {[%clk 0:04:32.8]}
15... Qe7 {[%clk 0:03:57.2]} 16. O-O {[%clk 0:04:29.1]} 16... Nd7 {[%clk
0:03:42.1]} 17. Rae1 {[%clk 0:03:52.6]} 17... Rab8 {[%clk 0:03:39.1]} 18. a5
{[%clk 0:03:51.5]} 18... b5 {[%clk 0:03:37.4]} 19. axb6 {[%clk 0:03:50.5]} 19...
Nxb6 {[%clk 0:03:36.9]} 20. Na5 {[%clk 0:03:49]} 20... Bxc3 {[%clk 0:03:20.5]}
21. bxc3 {[%clk 0:03:37.8]} 21... Nxd5 {[%clk 0:03:16.8]} 22. Nc6 {[%clk
0:03:33.8]} 22... Nxc3 {[%clk 0:03:15.2]} 23. Nxe7+ {[%clk 0:03:32.8]} 23...
Rxe7 {[%clk 0:03:11.5]} 24. Qxa6 {[%clk 0:03:21.7]} 24... Rb2 {[%clk 0:02:59.7]}
25. Qxd6 {[%clk 0:03:14.3]} 25... Re6 {[%clk 0:02:37.3]} 26. Qxc5 {[%clk
0:03:08.8]} 1-0

[Event "Live Chess"]
[Site "Chess.com"]
[Date "2024.06.01"]
[Round "-"]
[White "NomisY"]
[Black "CheckThis4"]
[Result "0-1"]
[WhiteElo "2281"]
[BlackElo "2683"]
[TimeControl "300"]
[EndTime "15:05:25 PDT"]
[Termination "CheckThis4 won by resignation"]

1. d4 {[%clk 0:04:56.1]} 1... Nf6 {[%clk 0:04:56.1]} 2. c4 {[%clk 0:04:53.8]}
2... g6 {[%clk 0:04:54.1]} 3. Nc3 {[%clk 0:04:52.2]} 3... Bg7 {[%clk 0:04:49]}
4. e4 {[%clk 0:04:49.9]} 4... d6 {[%clk 0:04:47.3]} 5. f3 {[%clk 0:04:48.3]}
5... O-O {[%clk 0:04:44.3]} 6. Be3 {[%clk 0:04:47]} 6... a6 {[%clk 0:04:35.5]}
7. Qd2 {[%clk 0:04:43.9]} 7... Nbd7 {[%clk 0:04:31.5]} 8. Bd3 {[%clk 0:04:34.5]}
8... e5 {[%clk 0:04:28.1]} 9. Nge2 {[%clk 0:04:26.3]} 9... c6 {[%clk 0:04:07.6]}
10. d5 {[%clk 0:04:21.8]} 10... cxd5 {[%clk 0:04:02.4]} 11. cxd5 {[%clk
0:04:20.1]} 11... b5 {[%clk 0:03:52.7]} 12. O-O {[%clk 0:04:14.5]} 12... Qe7
{[%clk 0:03:47.1]} 13. Rfc1 {[%clk 0:04:08]} 13... Ne8 {[%clk 0:03:43.3]} 14. a4
{[%clk 0:03:51.8]} 14... b4 {[%clk 0:03:41]} 15. Nd1 {[%clk 0:03:50.6]} 15... a5
{[%clk 0:03:39.4]} 16. Nf2 {[%clk 0:03:46.4]} 16... f5 {[%clk 0:03:37.3]} 17.
Bg5 {[%clk 0:03:42.6]} 17... Bf6 {[%clk 0:03:14.9]} 18. Bxf6 {[%clk 0:03:30.9]}
18... Ndxf6 {[%clk 0:03:13.3]} 19. Rc2 {[%clk 0:03:13.2]} 19... f4 {[%clk
0:03:10.5]} 20. Rac1 {[%clk 0:03:08.4]} 20... Bd7 {[%clk 0:03:07.3]} 21. b3
{[%clk 0:03:04.8]} 21... g5 {[%clk 0:03:04.6]} 22. h3 {[%clk 0:02:57.1]} 22...
h5 {[%clk 0:03:02.4]} 23. Bb5 {[%clk 0:02:37.2]} 23... g4 {[%clk 0:02:47.7]} 24.
Bxd7 {[%clk 0:02:09.6]} 24... Qxd7 {[%clk 0:02:45.2]} 25. Kh1 {[%clk 0:02:06.5]}
25... Ra7 {[%clk 0:02:17.1]} 26. Qd3 {[%clk 0:02:00.6]} 26... Kh8 {[%clk
0:02:05.4]} 27. Qb5 {[%clk 0:01:49.2]} 27... Qh7 {[%clk 0:01:48.8]} 28. Rg1
{[%clk 0:01:44.3]} 28... Rg7 {[%clk 0:01:44.2]} 29. Qxa5 {[%clk 0:01:27.8]}
29... gxf3 {[%clk 0:01:37.3]} 30. gxf3 {[%clk 0:01:25.5]} 30... Rxg1+ {[%clk
0:01:36.1]} 31. Kxg1 {[%clk 0:01:22.4]} 31... Rg8+ {[%clk 0:01:32.4]} 32. Kf1
{[%clk 0:01:17.9]} 32... Qg7 {[%clk 0:01:11.6]} 33. Ke1 {[%clk 0:01:05.9]} 33...
Qg2 {[%clk 0:01:07.1]} 34. Qxb4 {[%clk 0:01:00.1]} 34... Qxf3 {[%clk 0:01:05.7]}
35. a5 {[%clk 0:00:43.6]} 35... Rg2 {[%clk 0:01:03.4]} 36. Qb6 {[%clk
0:00:39.6]} 36... Nxe4 {[%clk 0:00:56.1]} 37. Nxe4 {[%clk 0:00:25.2]} 37... Qxe4
{[%clk 0:00:51.9]} 38. Rb2 {[%clk 0:00:23.1]} 38... f3 {[%clk 0:00:50]} 0-1

[Event "Live Chess"]
[Site "Chess.com"]
[Date "2024.06.01"]
[Round "-"]
[White "Harry_Li"]
[Black "updatedopenings2024"]
[Result "0-1"]
[WhiteElo "2086"]
[BlackElo "1963"]
[TimeControl "300"]
[EndTime "15:05:52 PDT"]
[Termination "updatedopenings2024 won by resignation"]

1. e4 {[%clk 0:04:58.1]} 1... c6 {[%clk 0:04:57.6]} 2. d4 {[%clk 0:04:57.1]}
2... d5 {[%clk 0:04:57.5]} 3. e5 {[%clk 0:04:56.2]} 3... c5 {[%clk 0:04:55.9]}
4. c3 {[%clk 0:04:55.1]} 4... Nc6 {[%clk 0:04:55.8]} 5. Be2 {[%clk 0:04:52.4]}
5... cxd4 {[%clk 0:04:54.6]} 6. cxd4 {[%clk 0:04:52.3]} 6... Bf5 {[%clk
0:04:54.1]} 7. Nf3 {[%clk 0:04:51.8]} 7... e6 {[%clk 0:04:53.5]} 8. O-O {[%clk
0:04:50.8]} 8... Rc8 {[%clk 0:04:52.8]} 9. Nc3 {[%clk 0:04:49.4]} 9... Nge7
{[%clk 0:04:51.9]} 10. Nh4 {[%clk 0:04:46.2]} 10... Bg6 {[%clk 0:04:51]} 11. Be3
{[%clk 0:04:30]} 11... Nf5 {[%clk 0:04:49]} 12. Nxf5 {[%clk 0:04:29]} 12... Bxf5
{[%clk 0:04:48.8]} 13. g4 {[%clk 0:04:25.1]} 13... Bg6 {[%clk 0:04:47.9]} 14. f4
{[%clk 0:04:22.7]} 14... f5 {[%clk 0:04:44.8]} 15. Kh1 {[%clk 0:04:11.4]} 15...
a6 {[%clk 0:04:37.8]} 16. Rg1 {[%clk 0:04:05]} 16... fxg4 {[%clk 0:04:36.8]} 17.
Bxg4 {[%clk 0:04:03.1]} 17... Qe7 {[%clk 0:04:33.9]} 18. Nxd5 {[%clk 0:03:51.7]}
18... exd5 {[%clk 0:04:33.1]} 19. Bxc8 {[%clk 0:03:50.7]} 19... Be4+ {[%clk
0:04:32.4]} 20. Rg2 {[%clk 0:03:47.6]} 20... Bxg2+ {[%clk 0:04:31.2]} 21. Kxg2
{[%clk 0:03:47.5]} 21... g5 {[%clk 0:04:27.1]} 22. f5 {[%clk 0:03:08]} 22... h6
{[%clk 0:04:24.1]} 23. f6 {[%clk 0:02:58.9]} 23... Qc7 {[%clk 0:04:19.7]} 24.
Bf5 {[%clk 0:02:52.3]} 24... Qb6 {[%clk 0:04:16.1]} 25. b3 {[%clk 0:02:36.9]}
25... Nxe5 {[%clk 0:04:11.7]} 26. Qh5+ {[%clk 0:02:30.3]} 26... Kd8 {[%clk
0:04:06.6]} 27. dxe5 {[%clk 0:01:52.1]} 27... Qxe3 {[%clk 0:04:06.5]} 28. Qf7
{[%clk 0:01:49.8]} 28... Qe2+ {[%clk 0:03:59.7]} 29. Kg3 {[%clk 0:01:40.6]}
29... Qxe5+ {[%clk 0:03:57.8]} 30. Kg2 {[%clk 0:01:25.9]} 30... Qxf5 {[%clk
0:03:56.9]} 31. Re1 {[%clk 0:01:19]} 31... Bd6 {[%clk 0:03:41.7]} 32. Qg7 {[%clk
0:00:57.8]} 32... Qg4+ {[%clk 0:03:31.1]} 33. Kh1 {[%clk 0:00:54.5]} 33... Qf3+
{[%clk 0:03:29.8]} 34. Kg1 {[%clk 0:00:53.6]} 34... Bc5+ {[%clk 0:03:29.2]} 0-1

[Event "Live Chess"]
[Site "Chess.com"]
[Date "2024.06.01"]
[Round "-"]
[White "GrahamCuthbert"]
[Black "Delacorta"]
[Result "1-0"]
[WhiteElo "1031"]
[BlackElo "1559"]
[TimeControl "300"]
[EndTime "15:05:58 PDT"]
[Termination "GrahamCuthbert won by resignation"]

1. d4 {[%clk 0:04:58.4]} 1... e6 {[%clk 0:04:58.1]} 2. Bf4 {[%clk 0:04:56.7]}
2... f5 {[%clk 0:04:57]} 3. Nf3 {[%clk 0:04:55.1]} 3... Nf6 {[%clk 0:04:55.9]}
4. e3 {[%clk 0:04:51.9]} 4... d5 {[%clk 0:04:54.9]} 5. c4 {[%clk 0:04:50.5]}
5... c6 {[%clk 0:04:53.3]} 6. cxd5 {[%clk 0:04:49.3]} 6... exd5 {[%clk
0:04:52.6]} 7. Nc3 {[%clk 0:04:40.8]} 7... Be7 {[%clk 0:04:51.2]} 8. Ne5 {[%clk
0:04:36.2]} 8... O-O {[%clk 0:04:49.9]} 9. Bd3 {[%clk 0:04:31.2]} 9... Ne4
{[%clk 0:04:42.4]} 10. Ne2 {[%clk 0:04:17.5]} 10... Bd7 {[%clk 0:04:31.9]} 11.
Ng3 {[%clk 0:04:11.4]} 11... Be8 {[%clk 0:04:23.4]} 12. Nxf5 {[%clk 0:04:04.8]}
12... Rxf5 {[%clk 0:04:17.3]} 13. Qg4 {[%clk 0:03:57.1]} 13... Bg6 {[%clk
0:04:01.7]} 14. Nxg6 {[%clk 0:03:50.8]} 14... Rxf4 {[%clk 0:03:24.6]} 15. Nxf4
{[%clk 0:03:35.7]} 15... Nd7 {[%clk 0:03:22.3]} 16. Ne6 {[%clk 0:03:32.3]} 1-0

[Event "Live Chess"]
[Site "Chess.com"]
[Date "2024.06.01"]
[Round "-"]
[White "CCGoodKnightRookie"]
[Black "koekoekoe"]
[Result "1-0"]
[WhiteElo "2363"]
[BlackElo "1993"]
[TimeControl "300"]
[EndTime "15:05:59 PDT"]
[Termination "CCGoodKnightRookie won by resignation"]

1. d4 {[%clk 0:04:59.1]} 1... d5 {[%clk 0:04:59.8]} 2. Nc3 {[%clk 0:04:57.4]}
2... Nf6 {[%clk 0:04:58.9]} 3. Bf4 {[%clk 0:04:56.2]} 3... Bf5 {[%clk
0:04:58.1]} 4. e3 {[%clk 0:04:55]} 4... c6 {[%clk 0:04:57.4]} 5. Nf3 {[%clk
0:04:53.3]} 5... e6 {[%clk 0:04:56.8]} 6. Ne5 {[%clk 0:04:52]} 6... Nbd7 {[%clk
0:04:55.2]} 7. g4 {[%clk 0:04:51.5]} 7... Bg6 {[%clk 0:04:50.3]} 8. h4 {[%clk
0:04:50.8]} 8... Nxe5 {[%clk 0:04:36.8]} 9. dxe5 {[%clk 0:04:29.8]} 9... Ne4
{[%clk 0:04:33.9]} 10. h5 {[%clk 0:04:28.3]} 10... Nxc3 {[%clk 0:04:30.4]} 11.
bxc3 {[%clk 0:04:26.5]} 11... Qa5 {[%clk 0:04:20.1]} 12. Kd2 {[%clk 0:04:00]}
12... Be4 {[%clk 0:04:10.8]} 13. f3 {[%clk 0:03:58.3]} 13... Bxf3 {[%clk
0:03:57.7]} 14. Qxf3 {[%clk 0:03:55.9]} 14... Ba3 {[%clk 0:03:57.4]} 15. Rb1
{[%clk 0:03:53.4]} 15... b6 {[%clk 0:03:55.1]} 16. h6 {[%clk 0:03:44.9]} 16...
g6 {[%clk 0:03:50.6]} 17. Bg5 {[%clk 0:03:41.3]} 17... Bc5 {[%clk 0:03:42.2]}
18. Qf6 {[%clk 0:03:33.6]} 18... Rf8 {[%clk 0:03:38.6]} 19. Bd3 {[%clk
0:03:30.5]} 19... Qxa2 {[%clk 0:03:32.8]} 20. Ra1 {[%clk 0:03:28.6]} 20... Qb2
{[%clk 0:03:31.4]} 21. Rhb1 {[%clk 0:03:26.5]} 1-0

[Event "Live Chess"]
[Site "Chess.com"]
[Date "2024.06.01"]
[Round "-"]
[White "bez2104"]
[Black "Dhaydon19"]
[Result "0-1"]
[WhiteElo "1541"]
[BlackElo "2677"]
[TimeControl "300"]
[EndTime "15:06:14 PDT"]
[Termination "Dhaydon19 won by checkmate"]

1. e4 {[%clk 0:04:55.1]} 1... c6 {[%clk 0:04:58.3]} 2. d4 {[%clk 0:04:53.2]}
2... d5 {[%clk 0:04:57.7]} 3. exd5 {[%clk 0:04:52.4]} 3... cxd5 {[%clk
0:04:57.2]} 4. Bd3 {[%clk 0:04:51.5]} 4... Nf6 {[%clk 0:04:56.9]} 5. Nf3 {[%clk
0:04:50]} 5... Nc6 {[%clk 0:04:56.6]} 6. c3 {[%clk 0:04:47.6]} 6... Bg4 {[%clk
0:04:55.7]} 7. h3 {[%clk 0:04:43.4]} 7... Bh5 {[%clk 0:04:54.4]} 8. Bf4 {[%clk
0:04:40]} 8... e6 {[%clk 0:04:51.7]} 9. Nbd2 {[%clk 0:04:37.3]} 9... Bd6 {[%clk
0:04:50.8]} 10. Bxd6 {[%clk 0:04:32.7]} 10... Qxd6 {[%clk 0:04:50.5]} 11. O-O
{[%clk 0:04:31.6]} 11... Bg6 {[%clk 0:04:48.6]} 12. Bxg6 {[%clk 0:04:26.6]}
12... hxg6 {[%clk 0:04:48.2]} 13. Qb3 {[%clk 0:04:24.7]} 13... O-O-O {[%clk
0:04:46.2]} 14. c4 {[%clk 0:04:21]} 14... Qf4 {[%clk 0:04:43.3]} 15. g3 {[%clk
0:03:46]} 15... Qf5 {[%clk 0:04:40.4]} 16. Nh4 {[%clk 0:03:30.4]} 16... Rxh4
{[%clk 0:04:36.8]} 17. gxh4 {[%clk 0:03:29.3]} 17... Nxd4 {[%clk 0:04:34.7]} 18.
Qa4 {[%clk 0:03:13.8]} 18... Qxh3 {[%clk 0:04:28.7]} 19. Qxa7 {[%clk 0:03:09.3]}
19... Ne2# {[%clk 0:04:26.5]} 0-1